[Event "Titled Tuesday Blitz May 25 2021"]
[White "Jaracz, Pawel"]
[Black "Mohota, Nisha"]
[WhiteFideId "1102222"]
[BlackFideId "5004330"]
[WhiteElo "2495"]
[BlackElo "2117"]
[Result "1-0"]
[Round "03"]
[TimeControl "180+1"]
[Date "2021.05.25"]
[WhiteClock "0:01:21"]
[BlackClock "0:00:02"]

1. Nf3 {[%clk 0:03:00]}  f5 {[%clk 0:02:58]} 2. d3 {[%clk 0:02:58]}  d6 {[%clk 0:02:57]} 3. e4 {[%clk 0:02:57]}  e5 {[%clk 0:02:55]} 4. Nc3 {[%clk 0:02:47]}  Nf6 {[%clk 0:02:53]} 5. g3 {[%clk 0:02:38]}  Nc6 {[%clk 0:02:48]} 6. Bg2 {[%clk 0:02:38]}  Be7 {[%clk 0:02:48]} 7. O-O {[%clk 0:02:39]}  O-O {[%clk 0:02:49]} 8. Nh4 {[%clk 0:02:33]}  f4 {[%clk 0:02:39]} 9. gxf4 {[%clk 0:02:27]}  exf4 {[%clk 0:02:10]} 10. Nf3 {[%clk 0:02:20]}  Ng4 {[%clk 0:01:59]} 11. d4 {[%clk 0:02:19]}  Nh6 {[%clk 0:01:34]} 12. Nd5 {[%clk 0:02:12]}  Bg4 {[%clk 0:01:21]} 13. h3 {[%clk 0:02:09]}  Bxf3 {[%clk 0:01:08]} 14. Bxf3 {[%clk 0:02:09]}  Bg5 {[%clk 0:01:03]} 15. c3 {[%clk 0:02:07]}  Qd7 {[%clk 0:01:00]} 16. Kh2 {[%clk 0:02:07]}  Ne7 {[%clk 0:00:52]} 17. Qb3 {[%clk 0:02:04]}  Kh8 {[%clk 0:00:40]} 18. Qxb7 {[%clk 0:02:02]}  Nxd5 {[%clk 0:00:29]} 19. Qxd5 {[%clk 0:02:01]}  Bh4 {[%clk 0:00:24]} 20. Qh5 {[%clk 0:01:55]}  Be7 {[%clk 0:00:23]} 21. Rg1 {[%clk 0:01:53]}  Rab8 {[%clk 0:00:17]} 22. b3 {[%clk 0:01:41]}  Rb5 {[%clk 0:00:17]} 23. d5 {[%clk 0:01:36]}  Bf6 {[%clk 0:00:07]} 24. Bd2 {[%clk 0:01:36]}  Be5 {[%clk 0:00:06]} 25. Rg5 {[%clk 0:01:35]}  Nf7 {[%clk 0:00:04]} 26. Rg2 {[%clk 0:01:30]}  Rb6 {[%clk 0:00:03]} 27. Rag1 {[%clk 0:01:29]}  Ra6 {[%clk 0:00:04]} 28. a4 {[%clk 0:01:27]}  Rg8 {[%clk 0:00:03]} 29. Bg4 {[%clk 0:01:25]}  Qe7 {[%clk 0:00:03]} 30. Bf5 {[%clk 0:01:25]}  Nh6 {[%clk 0:00:02]} 31. Qxh6 {[%clk 0:01:21]} 1-0


[Site "https://www.chess.com"]

[Event "Titled Tuesday Blitz May 25 2021"]
[White "Maghsoodloo, Parham"]
[Black "Saya, Ethan"]
[WhiteFideId "12539929"]
[BlackFideId "26095181"]
[WhiteElo "2601"]
[BlackElo "2241"]
[Result "1-0"]
[Round "03"]
[TimeControl "180+1"]
[Date "2021.05.25"]
[WhiteClock "0:00:26"]
[BlackClock "0:00:02"]

1. b3 {[%clk 0:02:59]}  e5 {[%clk 0:02:58]} 2. Bb2 {[%clk 0:02:59]}  Nc6 {[%clk 0:02:57]} 3. e3 {[%clk 0:02:59]}  g6 {[%clk 0:02:57]} 4. Bb5 {[%clk 0:02:59]}  Nge7 {[%clk 0:02:55]} 5. f4 {[%clk 0:02:56]}  Bg7 {[%clk 0:02:54]} 6. Nf3 {[%clk 0:02:57]}  O-O {[%clk 0:02:50]} 7. O-O {[%clk 0:02:56]}  d6 {[%clk 0:02:41]} 8. fxe5 {[%clk 0:02:46]}  dxe5 {[%clk 0:02:28]} 9. e4 {[%clk 0:02:45]}  h6 {[%clk 0:02:08]} 10. Nc3 {[%clk 0:02:39]}  Be6 {[%clk 0:02:07]} 11. Bc4 {[%clk 0:02:38]}  Bxc4 {[%clk 0:02:01]} 12. bxc4 {[%clk 0:02:38]}  Nd4 {[%clk 0:02:02]} 13. Nd5 {[%clk 0:02:36]}  c6 {[%clk 0:01:57]} 14. Nxe7+ {[%clk 0:02:35]}  Qxe7 {[%clk 0:01:58]} 15. Bxd4 {[%clk 0:02:35]}  exd4 {[%clk 0:01:58]} 16. d3 {[%clk 0:02:36]}  f5 {[%clk 0:01:52]} 17. Re1 {[%clk 0:02:34]}  Qf7 {[%clk 0:01:32]} 18. exf5 {[%clk 0:02:22]}  Qxf5 {[%clk 0:01:30]} 19. Re7 {[%clk 0:02:22]}  Rf7 {[%clk 0:01:29]} 20. Qe2 {[%clk 0:02:22]}  Raf8 {[%clk 0:01:22]} 21. Rb1 {[%clk 0:02:17]}  b6 {[%clk 0:01:20]} 22. Re1 {[%clk 0:02:12]}  c5 {[%clk 0:01:20]} 23. h3 {[%clk 0:02:06]}  h5 {[%clk 0:01:08]} 24. Qe6 {[%clk 0:01:59]}  Qxe6 {[%clk 0:01:06]} 25. R1xe6 {[%clk 0:01:57]}  Rxe7 {[%clk 0:01:05]} 26. Rxe7 {[%clk 0:01:57]}  Rf7 {[%clk 0:01:06]} 27. Re6 {[%clk 0:01:57]}  Rf6 {[%clk 0:01:04]} 28. Re4 {[%clk 0:01:35]}  Bh6 {[%clk 0:00:56]} 29. a4 {[%clk 0:01:35]}  Be3+ {[%clk 0:00:39]} 30. Kf1 {[%clk 0:01:35]}  Kf7 {[%clk 0:00:39]} 31. Ke2 {[%clk 0:01:34]}  Re6 {[%clk 0:00:36]} 32. c3 {[%clk 0:00:50]}  Rxe4 {[%clk 0:00:21]} 33. dxe4 {[%clk 0:00:50]}  Ke6 {[%clk 0:00:21]} 34. Kd3 {[%clk 0:00:49]}  Bf2 {[%clk 0:00:18]} 35. cxd4 {[%clk 0:00:49]}  cxd4 {[%clk 0:00:19]} 36. Nxd4+ {[%clk 0:00:30]}  Kd7 {[%clk 0:00:10]} 37. e5 {[%clk 0:00:29]}  a6 {[%clk 0:00:09]} 38. Ke4 {[%clk 0:00:29]}  Bg1 {[%clk 0:00:07]} 39. Kd5 {[%clk 0:00:28]}  Bxd4 {[%clk 0:00:03]} 40. Kxd4 {[%clk 0:00:28]}  Ke6 {[%clk 0:00:02]} 41. h4 {[%clk 0:00:28]}  Ke7 {[%clk 0:00:01]} 42. Kd5 {[%clk 0:00:28]}  Kd7 {[%clk 0:00:01]} 43. e6+ {[%clk 0:00:27]}  Ke7 {[%clk 0:00:02]} 44. Ke5 {[%clk 0:00:27]}  a5 {[%clk 0:00:02]} 45. g3 {[%clk 0:00:26]} 1-0


[Site "https://www.chess.com"]

[Event "Titled Tuesday Blitz May 25 2021"]
[White "Maly, Alexey"]
[Black "Filali, Razzouki Marouane"]
[WhiteFideId "14103184"]
[BlackFideId "9003720"]
[WhiteElo "2314"]
[BlackElo "2073"]
[Result "1-0"]
[Round "03"]
[TimeControl "180+1"]
[Date "2021.05.25"]
[WhiteClock "0:02:07"]
[BlackClock "0:00:02"]

1. d4 {[%clk 0:03:00]}  d5 {[%clk 0:02:57]} 2. c4 {[%clk 0:03:00]}  e6 {[%clk 0:02:57]} 3. Nf3 {[%clk 0:03:00]}  Nf6 {[%clk 0:02:58]} 4. e3 {[%clk 0:03:00]}  c5 {[%clk 0:02:58]} 5. dxc5 {[%clk 0:03:00]}  dxc4 {[%clk 0:02:56]} 6. Qxd8+ {[%clk 0:02:59]}  Kxd8 {[%clk 0:02:57]} 7. Bxc4 {[%clk 0:02:59]}  Bxc5 {[%clk 0:02:57]} 8. a3 {[%clk 0:03:00]}  Ke7 {[%clk 0:02:28]} 9. b4 {[%clk 0:03:00]}  Bd6 {[%clk 0:02:28]} 10. Bb2 {[%clk 0:03:00]}  a6 {[%clk 0:02:27]} 11. Nbd2 {[%clk 0:03:00]}  b5 {[%clk 0:02:26]} 12. Be2 {[%clk 0:03:00]}  Bb7 {[%clk 0:02:26]} 13. O-O {[%clk 0:03:00]}  Nbd7 {[%clk 0:02:25]} 14. Nb3 {[%clk 0:02:51]}  Rac8 {[%clk 0:02:17]} 15. Na5 {[%clk 0:02:48]}  Ba8 {[%clk 0:02:16]} 16. Rac1 {[%clk 0:02:48]}  Nb6 {[%clk 0:02:07]} 17. Nd4 {[%clk 0:02:46]}  Rxc1 {[%clk 0:01:13]} 18. Rxc1 {[%clk 0:02:45]}  Rc8 {[%clk 0:01:13]} 19. Rxc8 {[%clk 0:02:40]}  Nxc8 {[%clk 0:01:12]} 20. Ndc6+ {[%clk 0:02:36]}  Kd7 {[%clk 0:01:02]} 21. Bf3 {[%clk 0:02:36]}  Nb6 {[%clk 0:00:34]} 22. Bd4 {[%clk 0:02:32]}  Nbd5 {[%clk 0:00:21]} 23. Ne5+ {[%clk 0:02:28]}  Bxe5 {[%clk 0:00:13]} 24. Bxe5 {[%clk 0:02:28]}  Nc7 {[%clk 0:00:13]} 25. Be2 {[%clk 0:02:19]}  Nfe8 {[%clk 0:00:13]} 26. f3 {[%clk 0:02:18]}  f6 {[%clk 0:00:12]} 27. Bb2 {[%clk 0:02:19]}  Nd5 {[%clk 0:00:12]} 28. Kf2 {[%clk 0:02:19]}  Nd6 {[%clk 0:00:13]} 29. e4 {[%clk 0:02:16]}  Nb6 {[%clk 0:00:12]} 30. Ke3 {[%clk 0:02:14]}  Nbc4+ {[%clk 0:00:12]} 31. Nxc4 {[%clk 0:02:14]}  Nxc4+ {[%clk 0:00:12]} 32. Bxc4 {[%clk 0:02:14]}  bxc4 {[%clk 0:00:13]} 33. Kd4 {[%clk 0:02:14]}  Kc6 {[%clk 0:00:03]} 34. Kxc4 {[%clk 0:02:14]}  e5 {[%clk 0:00:03]} 35. Bc1 {[%clk 0:02:11]}  Bb7 {[%clk 0:00:04]} 36. Be3 {[%clk 0:02:11]}  Bc8 {[%clk 0:00:04]} 37. Bc5 {[%clk 0:02:10]}  Be6+ {[%clk 0:00:05]} 38. Kc3 {[%clk 0:02:10]}  Kb5 {[%clk 0:00:05]} 39. Bf8 {[%clk 0:02:10]}  g6 {[%clk 0:00:05]} 40. Be7 {[%clk 0:02:10]}  f5 {[%clk 0:00:05]} 41. Bd6 {[%clk 0:02:09]}  fxe4 {[%clk 0:00:04]} 42. fxe4 {[%clk 0:02:10]}  Ka4 {[%clk 0:00:02]} 43. Kb2 {[%clk 0:02:10]}  Bc4 {[%clk 0:00:01]} 44. Kc3 {[%clk 0:02:07]}  Bf1 {[%clk 0:00:01]} 45. g3 {[%clk 0:02:07]}  Bg2 {[%clk 0:00:02]} 46. Kd3 {[%clk 0:02:07]} 1-0


[Site "https://www.chess.com"]

[Event "Titled Tuesday Blitz May 25 2021"]
[White "Mirzoev, Azer"]
[Black "kleopl"]
[WhiteFideId "13400304"]
[WhiteElo "2525"]
[BlackElo "2481"]
[Result "1-0"]
[Round "03"]
[TimeControl "180+1"]
[Date "2021.05.25"]
[WhiteClock "0:00:26"]
[BlackClock "0:00:02"]

1. d4 {[%clk 0:02:58]}  d6 {[%clk 0:02:59]} 2. Nf3 {[%clk 0:02:57]}  Bg4 {[%clk 0:02:59]} 3. Nbd2 {[%clk 0:02:56]}  c6 {[%clk 0:02:57]} 4. c3 {[%clk 0:02:55]}  Nd7 {[%clk 0:02:55]} 5. e4 {[%clk 0:02:55]}  e5 {[%clk 0:02:54]} 6. h3 {[%clk 0:02:55]}  Bh5 {[%clk 0:02:54]} 7. Bd3 {[%clk 0:02:51]}  Ngf6 {[%clk 0:02:52]} 8. O-O {[%clk 0:02:49]}  Be7 {[%clk 0:02:52]} 9. Re1 {[%clk 0:02:49]}  O-O {[%clk 0:02:51]} 10. Qc2 {[%clk 0:02:46]}  b5 {[%clk 0:02:48]} 11. a4 {[%clk 0:02:42]}  a6 {[%clk 0:02:47]} 12. b4 {[%clk 0:02:42]}  Qb6 {[%clk 0:02:36]} 13. Bb2 {[%clk 0:02:40]}  Rfc8 {[%clk 0:02:34]} 14. Nh4 {[%clk 0:02:36]}  Bg6 {[%clk 0:02:25]} 15. Nxg6 {[%clk 0:02:34]}  hxg6 {[%clk 0:02:24]} 16. Nf3 {[%clk 0:02:29]}  Nh5 {[%clk 0:02:19]} 17. Bf1 {[%clk 0:02:26]}  Nf4 {[%clk 0:02:18]} 18. g3 {[%clk 0:02:26]}  Ne6 {[%clk 0:02:16]} 19. h4 {[%clk 0:02:20]}  Bf6 {[%clk 0:02:15]} 20. Red1 {[%clk 0:02:07]}  Rd8 {[%clk 0:02:13]} 21. Qb3 {[%clk 0:02:03]}  Rab8 {[%clk 0:02:03]} 22. axb5 {[%clk 0:02:01]}  axb5 {[%clk 0:02:02]} 23. Bh3 {[%clk 0:01:56]}  Ndf8 {[%clk 0:01:56]} 24. Kg2 {[%clk 0:01:55]}  Ra8 {[%clk 0:01:53]} 25. dxe5 {[%clk 0:01:44]}  Bxe5 {[%clk 0:01:46]} 26. Rxa8 {[%clk 0:01:33]}  Rxa8 {[%clk 0:01:45]} 27. Bc1 {[%clk 0:01:31]}  Qa6 {[%clk 0:01:38]} 28. Nxe5 {[%clk 0:01:28]}  dxe5 {[%clk 0:01:38]} 29. Rd6 {[%clk 0:01:28]}  Rd8 {[%clk 0:01:30]} 30. Rxd8 {[%clk 0:01:26]}  Nxd8 {[%clk 0:01:31]} 31. Qd1 {[%clk 0:01:21]}  Nde6 {[%clk 0:01:27]} 32. Be3 {[%clk 0:01:18]}  Qb7 {[%clk 0:01:23]} 33. Qd6 {[%clk 0:01:17]}  Qc7 {[%clk 0:01:15]} 34. Qxc7 {[%clk 0:01:14]}  Nxc7 {[%clk 0:01:15]} 35. Bc8 {[%clk 0:01:13]}  Nfe6 {[%clk 0:01:02]} 36. Bd7 {[%clk 0:01:08]}  Nd8 {[%clk 0:00:56]} 37. f4 {[%clk 0:01:00]}  exf4 {[%clk 0:00:52]} 38. gxf4 {[%clk 0:00:59]}  Nce6 {[%clk 0:00:37]} 39. Kf3 {[%clk 0:00:48]}  f6 {[%clk 0:00:24]} 40. f5 {[%clk 0:00:45]}  gxf5 {[%clk 0:00:24]} 41. exf5 {[%clk 0:00:45]}  Nf8 {[%clk 0:00:24]} 42. Be8 {[%clk 0:00:44]}  Nf7 {[%clk 0:00:18]} 43. Bf4 {[%clk 0:00:42]}  g6 {[%clk 0:00:17]} 44. Bxc6 {[%clk 0:00:40]}  gxf5 {[%clk 0:00:15]} 45. Bxb5 {[%clk 0:00:40]}  Ng6 {[%clk 0:00:15]} 46. h5 {[%clk 0:00:38]}  Nge5+ {[%clk 0:00:14]} 47. Ke3 {[%clk 0:00:38]}  Nd6 {[%clk 0:00:12]} 48. Be2 {[%clk 0:00:37]}  Kf7 {[%clk 0:00:11]} 49. Kd4 {[%clk 0:00:34]}  Ke6 {[%clk 0:00:11]} 50. h6 {[%clk 0:00:32]}  Ndf7 {[%clk 0:00:08]} 51. b5 {[%clk 0:00:31]}  Ng6 {[%clk 0:00:08]} 52. Ke3 {[%clk 0:00:31]}  Nge5 {[%clk 0:00:05]} 53. c4 {[%clk 0:00:29]}  Ng4+ {[%clk 0:00:04]} 54. Bxg4 {[%clk 0:00:28]}  fxg4 {[%clk 0:00:05]} 55. c5 {[%clk 0:00:28]}  Kd5 {[%clk 0:00:05]} 56. c6 {[%clk 0:00:28]}  Ke6 {[%clk 0:00:04]} 57. b6 {[%clk 0:00:27]}  Nd6 {[%clk 0:00:02]} 58. b7 {[%clk 0:00:27]}  Nxb7 {[%clk 0:00:02]} 59. cxb7 {[%clk 0:00:26]} 1-0


[Site "https://www.chess.com"]

[Event "Titled Tuesday Blitz May 25 2021"]
[White "Molina, Roberto Junio Brito"]
[Black "Jobava, Baadur"]
[WhiteFideId "2109450"]
[BlackFideId "13601520"]
[WhiteElo "2402"]
[BlackElo "2748"]
[Result "0-1"]
[Round "03"]
[TimeControl "180+1"]
[Date "2021.05.25"]
[WhiteClock "0:00:03"]
[BlackClock "0:00:20"]

1. d4 {[%clk 0:03:00]}  d5 {[%clk 0:02:59]} 2. c4 {[%clk 0:03:01]}  c6 {[%clk 0:03:00]} 3. Nc3 {[%clk 0:03:01]}  Nf6 {[%clk 0:03:00]} 4. Nf3 {[%clk 0:03:02]}  dxc4 {[%clk 0:03:00]} 5. a4 {[%clk 0:03:01]}  Bf5 {[%clk 0:02:59]} 6. Ne5 {[%clk 0:03:01]}  Nbd7 {[%clk 0:02:59]} 7. Nxc4 {[%clk 0:03:01]}  Qc7 {[%clk 0:03:00]} 8. g3 {[%clk 0:03:01]}  Rd8 {[%clk 0:03:00]} 9. Bf4 {[%clk 0:02:56]}  Qc8 {[%clk 0:03:00]} 10. Bg2 {[%clk 0:02:52]}  Be6 {[%clk 0:03:00]} 11. Ne3 {[%clk 0:02:47]}  h6 {[%clk 0:02:59]} 12. h4 {[%clk 0:02:40]}  Nc5 {[%clk 0:02:59]} 13. Ra3 {[%clk 0:02:35]}  g6 {[%clk 0:02:46]} 14. O-O {[%clk 0:02:28]}  Bg7 {[%clk 0:02:46]} 15. Be5 {[%clk 0:02:23]}  O-O {[%clk 0:02:43]} 16. Qc2 {[%clk 0:02:21]}  Ncd7 {[%clk 0:02:43]} 17. Bxf6 {[%clk 0:02:20]}  Nxf6 {[%clk 0:02:42]} 18. Rd1 {[%clk 0:02:19]}  a5 {[%clk 0:02:37]} 19. Ne4 {[%clk 0:02:08]}  Nxe4 {[%clk 0:02:34]} 20. Qxe4 {[%clk 0:02:09]}  f5 {[%clk 0:02:21]} 21. Qf4 {[%clk 0:02:01]}  Bf7 {[%clk 0:02:16]} 22. Rad3 {[%clk 0:01:54]}  Rxd4 {[%clk 0:02:10]} 23. Rxd4 {[%clk 0:01:22]}  e5 {[%clk 0:02:10]} 24. Qf3 {[%clk 0:01:18]}  exd4 {[%clk 0:02:10]} 25. Nc2 {[%clk 0:01:19]}  Rd8 {[%clk 0:02:01]} 26. Qf4 {[%clk 0:01:08]}  Qe6 {[%clk 0:01:43]} 27. Rd2 {[%clk 0:00:54]}  Qe5 {[%clk 0:01:28]} 28. Qf3 {[%clk 0:00:47]}  Bf6 {[%clk 0:01:15]} 29. Qd3 {[%clk 0:00:36]}  Kg7 {[%clk 0:01:12]} 30. Ne1 {[%clk 0:00:32]}  Qe7 {[%clk 0:01:06]} 31. Nc2 {[%clk 0:00:29]}  Qc5 {[%clk 0:00:56]} 32. h5 {[%clk 0:00:25]}  g5 {[%clk 0:00:54]} 33. Bh3 {[%clk 0:00:23]}  g4 {[%clk 0:00:53]} 34. Bg2 {[%clk 0:00:20]}  Bxh5 {[%clk 0:00:53]} 35. Qb3 {[%clk 0:00:17]}  Qe7 {[%clk 0:00:50]} 36. Ne1 {[%clk 0:00:11]}  Bf7 {[%clk 0:00:50]} 37. Qb6 {[%clk 0:00:11]}  Qb4 {[%clk 0:00:47]} 38. Qxb4 {[%clk 0:00:05]}  axb4 {[%clk 0:00:48]} 39. Nd3 {[%clk 0:00:06]}  Be7 {[%clk 0:00:48]} 40. a5 {[%clk 0:00:05]}  Kf6 {[%clk 0:00:46]} 41. a6 {[%clk 0:00:05]}  bxa6 {[%clk 0:00:46]} 42. Bxc6 {[%clk 0:00:05]}  a5 {[%clk 0:00:45]} 43. Ba4 {[%clk 0:00:05]}  Bd6 {[%clk 0:00:40]} 44. Nc1 {[%clk 0:00:05]}  Be5 {[%clk 0:00:39]} 45. Nb3 {[%clk 0:00:05]}  h5 {[%clk 0:00:33]} 46. Kf1 {[%clk 0:00:02]}  f4 {[%clk 0:00:31]} 47. gxf4 {[%clk 0:00:02]}  Bxf4 {[%clk 0:00:32]} 48. Rxd4 {[%clk 0:00:02]}  Rxd4 {[%clk 0:00:31]} 49. Nxd4 {[%clk 0:00:03]}  Be5 {[%clk 0:00:31]} 50. e3 {[%clk 0:00:03]}  Bxd4 {[%clk 0:00:31]} 51. exd4 {[%clk 0:00:04]}  Ke7 {[%clk 0:00:27]} 52. Ke2 {[%clk 0:00:04]}  Kd6 {[%clk 0:00:26]} 53. Ke3 {[%clk 0:00:05]}  h4 {[%clk 0:00:27]} 54. Kf4 {[%clk 0:00:05]}  h3 {[%clk 0:00:27]} 55. Kg3 {[%clk 0:00:05]}  Bd5 {[%clk 0:00:26]} 56. Bd1 {[%clk 0:00:05]}  Bf3 {[%clk 0:00:25]} 57. Bb3 {[%clk 0:00:04]}  Kc6 {[%clk 0:00:23]} 58. Kh2 {[%clk 0:00:03]}  Kb5 {[%clk 0:00:22]} 59. Kg3 {[%clk 0:00:02]}  a4 {[%clk 0:00:22]} 60. Be6 {[%clk 0:00:03]}  b3 {[%clk 0:00:20]} 61. Bd7+ {[%clk 0:00:02]}  Kb4 {[%clk 0:00:20]} 62. Be6 {[%clk 0:00:01]}  a3 {[%clk 0:00:19]} 63. bxa3+ {[%clk 0:00:02]}  Kxa3 {[%clk 0:00:20]} 64. d5 {[%clk 0:00:02]}  b2 {[%clk 0:00:20]} 65. Bf5 {[%clk 0:00:03]}  Bxd5 {[%clk 0:00:20]} 66. Kxg4 {[%clk 0:00:03]}  h2 {[%clk 0:00:20]} 0-1


[Site "https://www.chess.com"]

[Event "Titled Tuesday Blitz May 25 2021"]
[White "Nesterov, Arseniy"]
[Black "Golizadeh, Asghar"]
[WhiteFideId "24198455"]
[BlackFideId "12505269"]
[WhiteElo "2441"]
[BlackElo "2403"]
[Result "1-0"]
[Round "03"]
[TimeControl "180+1"]
[Date "2021.05.25"]
[WhiteClock "0:01:09"]
[BlackClock "0:00:02"]

1. d4 {[%clk 0:03:00]}  Nf6 {[%clk 0:02:57]} 2. c4 {[%clk 0:03:00]}  e6 {[%clk 0:02:57]} 3. Nf3 {[%clk 0:03:00]}  Bb4+ {[%clk 0:02:58]} 4. Bd2 {[%clk 0:02:59]}  Qe7 {[%clk 0:02:58]} 5. g3 {[%clk 0:02:59]}  Nc6 {[%clk 0:02:54]} 6. Bg2 {[%clk 0:02:59]}  Bxd2+ {[%clk 0:02:54]} 7. Nbxd2 {[%clk 0:03:00]}  d6 {[%clk 0:02:51]} 8. O-O {[%clk 0:02:59]}  O-O {[%clk 0:02:52]} 9. Nb1 {[%clk 0:03:00]}  e5 {[%clk 0:02:52]} 10. Nc3 {[%clk 0:03:00]}  Bg4 {[%clk 0:02:51]} 11. dxe5 {[%clk 0:02:58]}  dxe5 {[%clk 0:02:50]} 12. Nd5 {[%clk 0:02:59]}  Nxd5 {[%clk 0:02:49]} 13. cxd5 {[%clk 0:02:58]}  Bxf3 {[%clk 0:02:48]} 14. Bxf3 {[%clk 0:02:56]}  Nd4 {[%clk 0:02:48]} 15. Bg2 {[%clk 0:02:56]}  Rfd8 {[%clk 0:02:41]} 16. e3 {[%clk 0:02:56]}  Nf5 {[%clk 0:02:41]} 17. Qc2 {[%clk 0:02:55]}  Nd6 {[%clk 0:02:37]} 18. Rac1 {[%clk 0:02:55]}  Rac8 {[%clk 0:02:37]} 19. Bh3 {[%clk 0:02:54]}  e4 {[%clk 0:02:18]} 20. Bxc8 {[%clk 0:02:53]}  Rxc8 {[%clk 0:02:19]} 21. Qc5 {[%clk 0:02:50]}  h5 {[%clk 0:02:18]} 22. h4 {[%clk 0:02:45]}  g5 {[%clk 0:02:17]} 23. hxg5 {[%clk 0:02:41]}  h4 {[%clk 0:02:16]} 24. gxh4 {[%clk 0:02:36]}  Qd7 {[%clk 0:02:12]} 25. Rfd1 {[%clk 0:02:17]}  Qh3 {[%clk 0:01:40]} 26. Rd4 {[%clk 0:01:59]}  Qg4+ {[%clk 0:00:50]} 27. Kf1 {[%clk 0:01:58]}  Nf5 {[%clk 0:00:51]} 28. d6 {[%clk 0:01:45]}  Qf3 {[%clk 0:00:46]} 29. Ke1 {[%clk 0:01:39]}  Nxh4 {[%clk 0:00:41]} 30. d7 {[%clk 0:01:26]}  Ng2+ {[%clk 0:00:26]} 31. Kd2 {[%clk 0:01:26]}  Qxf2+ {[%clk 0:00:26]} 32. Kc3 {[%clk 0:01:27]}  Qxe3+ {[%clk 0:00:26]} 33. Kb4 {[%clk 0:01:27]}  a5+ {[%clk 0:00:17]} 34. Ka4 {[%clk 0:01:26]}  b5+ {[%clk 0:00:16]} 35. Kxb5 {[%clk 0:01:23]}  Rb8+ {[%clk 0:00:16]} 36. Kc6 {[%clk 0:01:20]}  Rd8 {[%clk 0:00:08]} 37. Kxc7 {[%clk 0:01:17]}  Nf4 {[%clk 0:00:02]} 38. Kxd8 {[%clk 0:01:13]}  Ne6+ {[%clk 0:00:02]} 39. Ke7 {[%clk 0:01:09]} 1-0


[Site "https://www.chess.com"]

[Event "Titled Tuesday Blitz May 25 2021"]
[White "Nguyen, Ngoc Truong Son"]
[Black "Kretov, Evgenij"]
[WhiteFideId "12401110"]
[BlackFideId "4167821"]
[WhiteElo "2596"]
[BlackElo "2381"]
[Result "0-1"]
[Round "03"]
[TimeControl "180+1"]
[Date "2021.05.25"]
[WhiteClock "0:00:11"]
[BlackClock "0:01:13"]

1. d4 {[%clk 0:03:00]}  Nf6 {[%clk 0:02:59]} 2. Nf3 {[%clk 0:03:00]}  d5 {[%clk 0:02:57]} 3. c4 {[%clk 0:03:00]}  e6 {[%clk 0:02:57]} 4. Nc3 {[%clk 0:02:59]}  Nbd7 {[%clk 0:02:57]} 5. Bf4 {[%clk 0:02:45]}  dxc4 {[%clk 0:02:57]} 6. e3 {[%clk 0:02:45]}  Nd5 {[%clk 0:02:54]} 7. Bxc4 {[%clk 0:02:43]}  Nxf4 {[%clk 0:02:53]} 8. exf4 {[%clk 0:02:44]}  Nb6 {[%clk 0:02:53]} 9. Bb3 {[%clk 0:02:31]}  Nd5 {[%clk 0:02:53]} 10. g3 {[%clk 0:02:24]}  Bb4 {[%clk 0:02:51]} 11. Rc1 {[%clk 0:02:23]}  O-O {[%clk 0:02:49]} 12. O-O {[%clk 0:02:22]}  Nxc3 {[%clk 0:02:45]} 13. bxc3 {[%clk 0:02:22]}  Ba3 {[%clk 0:02:45]} 14. Rc2 {[%clk 0:02:22]}  b6 {[%clk 0:02:45]} 15. Qd3 {[%clk 0:02:12]}  Bb7 {[%clk 0:02:43]} 16. Rd1 {[%clk 0:01:44]}  Be7 {[%clk 0:02:33]} 17. c4 {[%clk 0:01:39]}  Bf6 {[%clk 0:02:30]} 18. d5 {[%clk 0:01:36]}  exd5 {[%clk 0:02:30]} 19. cxd5 {[%clk 0:01:37]}  Rc8 {[%clk 0:02:28]} 20. Re2 {[%clk 0:01:29]}  c5 {[%clk 0:02:20]} 21. Ne5 {[%clk 0:01:24]}  a6 {[%clk 0:02:13]} 22. d6 {[%clk 0:01:22]}  b5 {[%clk 0:02:12]} 23. Nxf7 {[%clk 0:01:09]}  Rxf7 {[%clk 0:02:11]} 24. d7 {[%clk 0:01:08]}  c4 {[%clk 0:02:06]} 25. Re8+ {[%clk 0:00:19]}  Qxe8 {[%clk 0:02:05]} 26. dxe8=Q+ {[%clk 0:00:20]}  Rxe8 {[%clk 0:02:05]} 27. Bxc4 {[%clk 0:00:20]}  bxc4 {[%clk 0:02:05]} 28. Qxc4 {[%clk 0:00:21]}  Kf8 {[%clk 0:01:58]} 29. h4 {[%clk 0:00:20]}  Bf3 {[%clk 0:01:53]} 30. Rc1 {[%clk 0:00:19]}  Rfe7 {[%clk 0:01:50]} 31. Qb4 {[%clk 0:00:19]}  g6 {[%clk 0:01:31]} 32. Kh2 {[%clk 0:00:18]}  Kg7 {[%clk 0:01:30]} 33. Qb3 {[%clk 0:00:17]}  Bg4 {[%clk 0:01:23]} 34. Kg2 {[%clk 0:00:16]}  Re2 {[%clk 0:01:22]} 35. Rc7+ {[%clk 0:00:15]}  R8e7 {[%clk 0:01:22]} 36. Qc4 {[%clk 0:00:13]}  h5 {[%clk 0:01:20]} 37. Rxe7+ {[%clk 0:00:13]}  Bxe7 {[%clk 0:01:20]} 38. Qxa6 {[%clk 0:00:13]}  Bc5 {[%clk 0:01:15]} 39. Qb7+ {[%clk 0:00:12]}  Kh6 {[%clk 0:01:15]} 40. Qb8 {[%clk 0:00:11]}  Rxf2+ {[%clk 0:01:13]} 0-1


[Site "https://www.chess.com"]

[Event "Titled Tuesday Blitz May 25 2021"]
[White "Nguyen, Van Huy"]
[Black "Principe, Gerson"]
[WhiteFideId "12401064"]
[BlackFideId "3804550"]
[WhiteElo "2443"]
[BlackElo "2280"]
[Result "0-1"]
[Round "03"]
[TimeControl "180+1"]
[Date "2021.05.25"]
[WhiteClock "0:01:36"]
[BlackClock "0:00:29"]

1. d4 {[%clk 0:03:00]}  Nf6 {[%clk 0:02:59]} 2. c4 {[%clk 0:03:00]}  e6 {[%clk 0:02:59]} 3. Nf3 {[%clk 0:03:00]}  b6 {[%clk 0:02:59]} 4. g3 {[%clk 0:03:00]}  Bb7 {[%clk 0:03:00]} 5. Bg2 {[%clk 0:03:00]}  Be7 {[%clk 0:03:00]} 6. O-O {[%clk 0:03:01]}  O-O {[%clk 0:03:01]} 7. Nc3 {[%clk 0:03:01]}  Ne4 {[%clk 0:03:00]} 8. Bd2 {[%clk 0:03:02]}  f5 {[%clk 0:03:00]} 9. Rc1 {[%clk 0:03:01]}  Bf6 {[%clk 0:03:00]} 10. d5 {[%clk 0:03:01]}  Na6 {[%clk 0:02:48]} 11. Qc2 {[%clk 0:03:01]}  Nac5 {[%clk 0:02:41]} 12. Rfd1 {[%clk 0:02:58]}  Qc8 {[%clk 0:02:33]} 13. Be1 {[%clk 0:02:57]}  a5 {[%clk 0:02:30]} 14. Nd4 {[%clk 0:02:56]}  Bxd4 {[%clk 0:02:13]} 15. Rxd4 {[%clk 0:02:55]}  e5 {[%clk 0:02:11]} 16. Rdd1 {[%clk 0:02:55]}  Nxc3 {[%clk 0:02:10]} 17. Bxc3 {[%clk 0:02:54]}  d6 {[%clk 0:02:10]} 18. e3 {[%clk 0:02:46]}  Qd7 {[%clk 0:02:01]} 19. f4 {[%clk 0:02:46]}  Rae8 {[%clk 0:01:37]} 20. b3 {[%clk 0:02:45]}  Qf7 {[%clk 0:01:24]} 21. a3 {[%clk 0:02:44]}  e4 {[%clk 0:01:24]} 22. Bf1 {[%clk 0:02:33]}  a4 {[%clk 0:01:14]} 23. b4 {[%clk 0:02:33]}  Nb3 {[%clk 0:01:14]} 24. Rb1 {[%clk 0:02:32]}  Bc8 {[%clk 0:01:12]} 25. Bb2 {[%clk 0:02:18]}  Bd7 {[%clk 0:01:11]} 26. Qc3 {[%clk 0:02:18]}  Re7 {[%clk 0:01:11]} 27. Re1 {[%clk 0:02:15]}  Qh5 {[%clk 0:01:08]} 28. Be2 {[%clk 0:02:12]}  Qh3 {[%clk 0:01:06]} 29. Bd1 {[%clk 0:02:12]}  h5 {[%clk 0:01:02]} 30. Re2 {[%clk 0:02:04]}  Be8 {[%clk 0:00:47]} 31. Qe1 {[%clk 0:01:56]}  Kh7 {[%clk 0:00:38]} 32. Qf1 {[%clk 0:01:51]}  Qxf1+ {[%clk 0:00:37]} 33. Kxf1 {[%clk 0:01:51]}  b5 {[%clk 0:00:33]} 34. Rc2 {[%clk 0:01:40]}  bxc4 {[%clk 0:00:33]} 35. Be2 {[%clk 0:01:40]}  Bb5 {[%clk 0:00:32]} 36. Bxc4 {[%clk 0:01:39]}  Bxc4+ {[%clk 0:00:32]} 37. Rxc4 {[%clk 0:01:40]}  Nd2+ {[%clk 0:00:32]} 38. Ke2 {[%clk 0:01:37]}  Nxc4 {[%clk 0:00:33]} 39. Bd4 {[%clk 0:01:36]}  Nxa3 {[%clk 0:00:29]} 0-1


[Site "https://www.chess.com"]